fUSD/lending_fUSD_20250503
["ID","MTS","AMOUNT","RATE_DAILY","PERIOD"]
[359742496,1746293440364,-450.0,0.00019612,2]
[359742497,1746293440374,-697.54,0.00019612,2]
[359742498,1746293440384,-640.33,0.00019612,2]
[359742499,1746293440393,-450.0,0.00019612,2]
[359742500,1746293440402,-496.1,0.00019612,2]
[359742501,1746293440411,-450.0,0.00019612,2]
[359742502,1746293440421,-450.0,0.00019612,2]
[359742503,1746293440430,-450.0,0.00019612,2]
[359742504,1746293440440,-1305.7,0.00019612,2]
[359742505,1746293440449,-578.15,0.00019612,2]
[359742506,1746293440458,-565.39,0.00019612,2]
[359742507,1746293440468,-450.0,0.00019612,2]
[359742508,1746293440477,-450.0,0.00019612,2]
[359742509,1746293440486,-617.27,0.00019612,2]
[359742510,1746293440496,-450.0,0.00019612,2]
[359742511,1746293440505,-450.0,0.00019612,2]
[359742512,1746293440514,-450.0,0.00019612,2]
[359742513,1746293440523,-450.0,0.00019612,2]
[359742514,1746293440532,-450.0,0.00019612,2]
[359742515,1746293440541,-475.59,0.00019612,2]
[359742516,1746293440551,-479.31271413,0.00019612,2]
[359742517,1746293440560,-450.0,0.00019612,2]
[359742518,1746293440572,-450.0,0.00019612,2]
[359742519,1746293440581,-450.0,0.00019612,2]
[359742520,1746293440590,-450.0,0.00019612,2]
[359742521,1746293440599,-763.89,0.00019612,2]
[359742522,1746293440608,-7.37837298,0.00019612,2]
[359742523,1746293441141,-464.1899375,0.00019612,2]
[359742524,1746293441151,-450.0,0.00019612,2]
[359742525,1746293441160,-472.79538287,0.00019612,2]
[359742526,1746293441170,-474.22776786,0.00019612,2]
[359742527,1746293441179,-659.95,0.00019612,2]
[359742528,1746293441188,-593.05,0.00019612,2]
[359742529,1746293441198,-450.0,0.00019612,2]
[359742530,1746293441207,-450.0,0.00019612,2]
[359742531,1746293441217,-450.0,0.00019612,2]
[359742532,1746293441226,-450.0,0.00019612,2]
[359742533,1746293441235,-55.8564617,0.00019612,2]
[359742534,1746293441256,-394.1435383,0.00019612,2]
[359742535,1746293441265,-623.6,0.00019612,2]
[359742536,1746293441275,-450.0,0.00019612,2]
[359742537,1746293441284,-450.0,0.00019612,2]
[359742538,1746293441293,-450.0,0.00019612,2]
[359742539,1746293441303,-450.0,0.00019612,2]
[359742540,1746293441312,-450.0,0.00019612,2]
[359742541,1746293441322,-532.18838209,0.00019612,2]
[359742542,1746293441331,-450.0,0.00019612,2]
[359742543,1746293441340,-450.0,0.00019612,2]
[359742544,1746293441349,-500.0,0.00019612,2]
[359742545,1746293441359,-450.0,0.00019612,2]
[359742546,1746293441369,-450.0,0.00019612,2]
[359742547,1746293441378,-450.0,0.00019612,2]
[359742548,1746293441388,-450.0,0.00019612,2]
[359742549,1746293441397,-406.62245349,0.00019612,2]
[359742550,1746293441407,-450.0,0.00019612,2]
[359742551,1746293441416,-450.0,0.00019612,2]
[359742552,1746293441426,-450.0,0.00019612,2]
[359742553,1746293441436,-611.63,0.00019612,2]
[359742554,1746293441445,-191.78198695,0.00019612,2]
[359742555,1746293441462,-258.21801305,0.00019612,2]
[359742556,1746293441472,-2156.79,0.00019612,2]
[359742557,1746293441481,-450.0,0.00019612,2]
[359742558,1746293441490,-450.0,0.00019612,2]
[359742559,1746293441500,-450.0,0.00019612,2]
[359742560,1746293441509,-450.0,0.00019612,2]
[359742561,1746293441518,-450.0,0.00019612,2]
[359742562,1746293441528,-450.0,0.00019612,2]
[359742563,1746293441537,-450.001,0.00019612,2]
[359742564,1746293441546,-450.0,0.00019612,2]
[359742565,1746293441555,-939.49,0.00019612,2]
[359742566,1746293441565,-450.0,0.00019612,2]
[359742567,1746293441574,-450.0,0.00019612,2]
[359742568,1746293441583,-450.0,0.00019612,2]
[359742569,1746293441593,-450.0,0.00019612,2]
[359742570,1746293441602,-499.04539545,0.00019612,2]
[359742571,1746293441612,-546.5,0.00019612,2]
[359742572,1746293441621,-450.0,0.00019612,2]
[359742573,1746293441631,-363.71510768,0.00019612,2]
[359742574,1746293441643,-86.28489232,0.00019612,2]
[359742575,1746293441652,-823.74,0.00019612,2]
[359742576,1746293441661,-450.0,0.00019612,2]
[359742577,1746293441670,-172.92510749,0.00019612,2]
[359742578,1746293441683,-277.07489251,0.00019612,2]
[359742579,1746293441692,-1990.05,0.00019612,2]
[359742580,1746293441702,-450.0,0.00019612,2]
[359742581,1746293441712,-450.0,0.00019612,2]
[359742582,1746293441722,-450.0,0.00019612,2]
[359742583,1746293441731,-519.79,0.00019612,2]
[359742584,1746293441741,-450.0,0.00019612,2]
[359742585,1746293441751,-450.0,0.00019612,2]
[359742586,1746293441760,-450.0,0.00019612,2]
[359742587,1746293441770,-450.0,0.00019612,2]
[359742588,1746293441783,-450.0,0.00019612,2]
[359742589,1746293441792,-450.0,0.00019612,2]
[359742590,1746293441801,-450.0,0.00019612,2]
[359742591,1746293441811,-450.0,0.00019612,2]
[359742592,1746293441821,-97505.73,0.00019612,2]
[359742593,1746293441831,-450.0,0.00019612,2]
[359742594,1746293441841,-1431.55,0.00019612,2]
[359742595,1746293441850,-495.78440254,0.00019612,2]
[359742596,1746293441860,-500.36,0.00019612,2]
[359742597,1746293441870,-551.02,0.00019612,2]
[359742598,1746293441880,-1330.69,0.00019612,2]
[359742599,1746293441889,-528.05,0.00019612,2]
[359742600,1746293441898,-450.0,0.00019612,2]
[359742601,1746293441908,-450.0,0.00019612,2]
[359742602,1746293441918,-450.0,0.00019612,2]
[359742603,1746293441927,-7023.14,0.00019612,2]
[359742604,1746293441936,-450.0,0.00019612,2]
[359742605,1746293441946,-450.0,0.00019612,2]
[359742606,1746293441956,-450.0,0.00019612,2]
[359742607,1746293441966,-583.13,0.00019612,2]
[359742608,1746293441976,-1015.91,0.00019612,2]
[359742609,1746293441986,-450.0,0.00019612,2]
[359742610,1746293441995,-466.82,0.00019612,2]
[359742611,1746293442006,-450.0,0.00019612,2]
[359742612,1746293442015,-450.0,0.00019612,2]
[359742613,1746293442025,-450.0,0.00019612,2]
[359742614,1746293442035,-450.0,0.00019612,2]
[359742615,1746293442044,-958.55,0.00019612,2]
[359742616,1746293442053,-460.29768648,0.00019612,2]
[359742617,1746293442063,-866.11,0.00019612,2]
[359742618,1746293442072,-450.0,0.00019612,2]
[359742619,1746293442082,-450.0,0.00019612,2]
[359742620,1746293442091,-680.47,0.00019612,2]
[359742621,1746293442101,-450.0,0.00019612,2]
[359742622,1746293442111,-2158.71,0.00019612,2]
[359742623,1746293442121,-450.0,0.00019612,2]
[359742624,1746293442131,-450.0,0.00019612,2]
[359742625,1746293442140,-450.0,0.00019612,2]
[359742626,1746293442149,-450.0,0.00019612,2]
[359742627,1746293442159,-498.13,0.00019612,2]
[359742628,1746293442168,-450.0,0.00019612,2]
[359742629,1746293442178,-450.0,0.00019612,2]
[359742630,1746293442187,-487.62,0.00019612,2]
[359742631,1746293442196,-509.82,0.00019612,2]
[359742632,1746293442491,-3660.05,0.00019612,2]
[359742633,1746293442501,-1151.2,0.00019612,2]
[359742634,1746293442510,-647.39,0.00019612,2]
[359742635,1746293442520,-530.41,0.00019612,2]
[359742636,1746293442530,-462.55021192,0.00019612,2]
[359742637,1746293442540,-772.19,0.00019612,2]
[359742638,1746293442550,-300.0,0.00019612,2]
[359742639,1746293442560,-450.0,0.00019612,2]
[359742640,1746293442570,-511.88,0.00019612,2]
[359742641,1746293442580,-817.55,0.00019612,2]
[359742642,1746293442590,-450.0,0.00019612,2]
[359742643,1746293442600,-555.03,0.00019612,2]
[359742644,1746293442609,-655.76,0.00019612,2]
[359742645,1746293442619,-450.0,0.00019612,2]
[359742646,1746293442629,-929.36,0.00019612,2]
[359742647,1746293442639,-1060.64,0.00019612,2]
[359742648,1746293442650,-1677.02,0.00019612,2]
[359742649,1746293442659,-450.0,0.00019612,2]
[359742650,1746293442669,-450.0,0.00019612,2]
[359742651,1746293442679,-450.0,0.00019612,2]
[359742652,1746293442689,-1828.02,0.00019612,2]
[359742653,1746293442698,-376.58923022,0.00019612,2]
[359742654,1746293442709,-450.0,0.00019612,2]
[359742655,1746293442720,-450.0,0.00019612,2]
[359742656,1746293442729,-580.26,0.00019612,2]
[359742657,1746293442739,-450.0,0.00019612,2]
[359742658,1746293442749,-410.11033418,0.00019612,2]
[359742659,1746293442758,-450.0,0.00019612,2]
[359742660,1746293442768,-450.0,0.00019612,2]
[359742661,1746293442780,-323.24746342,0.00019612,2]
[359742662,1746293442789,-450.0,0.00019612,2]
[359742663,1746293442799,-679.22,0.00019612,2]
[359742664,1746293442809,-566.40820346,0.00019612,2]
[359742665,1746293442819,-450.0,0.00019612,2]
[359742666,1746293442829,-1039.54,0.00019612,2]
[359742667,1746293442839,-450.0,0.00019612,2]
[359742668,1746293442848,-450.0,0.00019612,2]
[359742669,1746293442860,-450.0,0.00019612,2]
[359742670,1746293442869,-450.0,0.00019612,2]
[359742671,1746293442879,-450.0,0.00019612,2]
[359742672,1746293442889,-450.0,0.00019612,2]
[359742673,1746293442899,-450.0,0.00019612,2]
[359742674,1746293442909,-450.0,0.00019612,2]
[359742675,1746293442919,-353.16523101,0.00019612,2]
[359742676,1746293442930,-450.0,0.00019612,2]
[359742677,1746293442940,-450.0,0.00019612,2]
[359742678,1746293442951,-450.0,0.00019612,2]
[359742679,1746293442960,-450.0,0.00019612,2]
[359742680,1746293442971,-621.54,0.00019612,2]
[359742681,1746293442980,-804.88,0.00019612,2]
[359742682,1746293442989,-1173.13,0.00019612,2]
[359742683,1746293442999,-450.0,0.00019612,2]
[359742684,1746293443009,-541.9,0.00019612,2]
[359742685,1746293443019,-538.04,0.00019612,2]
[359742686,1746293443029,-450.0,0.00019612,2]
[359742687,1746293443038,-450.0,0.00019612,2]
[359742688,1746293443047,-450.0,0.00019612,2]
[359742689,1746293443057,-849.36,0.00019612,2]
[359742690,1746293443066,-450.0,0.00019612,2]
[359742691,1746293443076,-2635.09,0.00019612,2]
[359742692,1746293443086,-450.0,0.00019612,2]
[359742693,1746293443096,-450.0,0.00019612,2]
[359742694,1746293443105,-552.33,0.00019612,2]
[359742695,1746293443115,-450.0,0.00019612,2]
[359742697,1746293443124,-450.0,0.00019612,2]
[359742698,1746293443134,-450.0,0.00019612,2]
[359742700,1746293443144,-520.99,0.00019612,2]
[359742701,1746293443154,-450.0,0.00019612,2]
[359742703,1746293443163,-2323.97,0.00019612,2]
[359742705,1746293443174,-565.46,0.00019612,2]
[359742707,1746293443184,-644.59,0.00019612,2]
[359742709,1746293443193,-3599.02,0.00019612,2]
[359742710,1746293443202,-503.21061387,0.00019612,2]
[359742712,1746293443212,-450.0,0.00019612,2]
[359742714,1746293443222,-5476.91,0.00019612,2]
[359742715,1746293443231,-450.0,0.00019612,2]
[359742717,1746293443242,-450.0,0.00019612,2]
[359742719,1746293443251,-450.0,0.00019612,2]
[359742721,1746293443261,-553.78,0.00019612,2]
[359742723,1746293443271,-450.0,0.00019612,2]
[359742724,1746293443281,-450.0,0.00019612,2]
[359742726,1746293443290,-450.0,0.00019612,2]
[359742727,1746293443300,-452.66416676,0.00019612,2]
[359742728,1746293443310,-450.0,0.00019612,2]
[359742729,1746293443320,-790.81,0.00019612,2]
[359742730,1746293443330,-450.0,0.00019612,2]
[359742731,1746293443339,-450.0,0.00019612,2]
[359742732,1746293443349,-450.0,0.00019612,2]
[359742734,1746293443359,-450.0,0.00019612,2]
[359742736,1746293443368,-450.0,0.00019612,2]
[359742738,1746293443378,-512.74,0.00019612,2]
[359742740,1746293443388,-6682.83,0.00019612,2]
[359742743,1746293443397,-450.0,0.00019612,2]
[359742745,1746293443407,-450.0,0.00019612,2]
[359742747,1746293443416,-450.0,0.00019612,2]
[359742749,1746293443426,-450.0,0.00019612,2]
[359742751,1746293443436,-450.0,0.00019612,2]
[359742753,1746293443446,-1102.1,0.00019612,2]
[359742755,1746293443456,-4181.68,0.00019612,2]
[359742757,1746293443465,-450.0,0.00019612,2]
[359742759,1746293443475,-500.0,0.00019612,2]
[359742761,1746293443485,-831.37,0.00019612,2]
[359742762,1746293443494,-450.0,0.00019612,2]
[359742765,1746293443505,-450.0,0.00019612,2]
[359742767,1746293443514,-537.91,0.00019612,2]
[359742769,1746293443523,-450.0,0.00019612,2]
[359742770,1746293443533,-450.0,0.00019612,2]
[359742772,1746293443542,-1011.12,0.00019612,2]
[359742774,1746293443552,-755.59,0.00019612,2]
[359742776,1746293443561,-450.0,0.00019612,2]
[359742778,1746293443571,-450.0,0.00019612,2]
[359742780,1746293443580,-585.96399907,0.00019612,2]
[359742781,1746293443590,-500.0,0.00019612,2]
[359742783,1746293443599,-450.0,0.00019612,2]
[359742785,1746293443609,-469.999999,0.00019612,2]
[359742787,1746293443619,-412.52998212,0.00019612,2]
[359742789,1746293443629,-1164.13,0.00019612,2]
[359742791,1746293443638,-450.0,0.00019612,2]
[359742793,1746293443648,-1778.04,0.00019612,2]
[359742796,1746293443658,-1666.22,0.00019612,2]
[359742798,1746293443667,-450.0,0.00019612,2]
[359742800,1746293443677,-450.0,0.00019612,2]
[359742802,1746293443687,-450.0,0.00019612,2]
[359742804,1746293443696,-450.0,0.00019612,2]
[359742806,1746293443705,-552.89,0.00019612,2]
[359742808,1746293443715,-450.0,0.00019612,2]
[359742810,1746293443725,-4713.58,0.00019612,2]
[359742812,1746293443735,-450.0,0.00019612,2]
[359742813,1746293443744,-3878.53,0.00019612,2]
[359742816,1746293443754,-450.0,0.00019612,2]
[359742817,1746293443763,-96986.69,0.00019612,2]
[359742819,1746293443773,-450.0,0.00019612,2]
[359742822,1746293443787,-450.0,0.00019612,2]
[359742824,1746293443796,-500.0,0.00019612,2]
[359742826,1746293443806,-450.0,0.00019612,2]
[359742828,1746293443815,-450.0,0.00019612,2]
[359742830,1746293443825,-500.0,0.00019612,2]
[359742832,1746293443835,-554.93,0.00019612,2]
[359742834,1746293443844,-1765.34,0.00019612,2]
[359742835,1746293443855,-450.0,0.00019612,2]
[359742837,1746293443865,-500.0,0.00019612,2]
[359742839,1746293443874,-450.0,0.00019612,2]
[359742841,1746293443885,-450.0,0.00019612,2]
[359742843,1746293443895,-450.0,0.00019612,2]
[359742845,1746293443905,-311.31525845,0.00019612,2]
[359742848,1746293443914,-4325.79,0.00019612,2]
[359742850,1746293443924,-1330.69,0.00019612,2]
[359742852,1746293443933,-503.37,0.00019612,2]
[359742854,1746293443944,-450.0,0.00019612,2]
[359742856,1746293443954,-520.67705875,0.00019612,2]
[359742858,1746293443963,-450.0,0.00019612,2]
[359742860,1746293443973,-500.0,0.00019612,2]
[359742862,1746293443982,-450.0,0.00019612,2]
[359742864,1746293443992,-450.0,0.00019612,2]
[359742865,1746293444001,-450.0,0.00019612,2]
[359742867,1746293444010,-150.0,0.00019612,2]
[359742869,1746293444020,-556.46148673,0.00019612,2]
[359742871,1746293444029,-450.0,0.00019612,2]
[359742873,1746293444039,-20514.36,0.00019612,2]
[359742875,1746293444048,-624.94,0.00019612,2]
[359742877,1746293444058,-677.58,0.00019612,2]
[359742879,1746293444067,-289.55208868,0.00019612,2]
[359742880,1746293444077,-3307.35,0.00019612,2]
[359742883,1746293444086,-181.59,0.00019612,2]
[359742884,1746293444096,-450.0,0.00019612,2]
[359742886,1746293444106,-450.0,0.00019612,2]
[359742888,1746293444116,-450.0,0.00019612,2]
[359742890,1746293444126,-5058.24444537,0.00019641,2]
[359742892,1746293444136,-1346.83161316,0.00019641,2]
[359742894,1746293444145,-999.0,0.00019671,2]
[359742896,1746293444155,-400.96451374,0.00019673,2]
[359742898,1746293444165,-500.0,0.00019673,2]
[359742900,1746293444175,-500.0,0.00019673,2]
[359742902,1746293444185,-500.0,0.00019673,2]
[359742905,1746293444195,-500.0,0.00019673,2]
[359742907,1746293444205,-500.0,0.00019673,2]
[359742909,1746293444215,-264.39475146,0.00019673,2]
[359742911,1746293444224,-500.0,0.00019673,2]
[359742912,1746293444233,-500.0,0.00019673,2]
[359742914,1746293444243,-500.0,0.00019673,2]
[359742917,1746293444264,-5058.24444537,0.00019684,2]
[359742919,1746293444274,-1346.83161316,0.00019684,2]
[359742921,1746293444285,-1000.0,0.000197,2]
[359742923,1746293444295,-7342.01,0.000197,2]
[359742924,1746293444305,-162.91081726,0.00019706,2]
[359742925,1746293444315,-5058.24444537,0.00019728,2]
[359742926,1746293444325,-1346.83161316,0.00019728,2]
[359742927,1746293444336,-86224.25544592,0.0001975,2]
[359742929,1746293444346,-5058.24444537,0.00019771,2]
[359742931,1746293444356,-1346.83161316,0.00019771,2]
[359742933,1746293444365,-275.45795138,0.00019786,2]
[359742934,1746293444375,-1269.85427237,0.00019786,2]
[359742936,1746293444386,-154.430521,0.0001979,2]
[359742938,1746293444396,-169.266646,0.0001979,2]
[359742940,1746293444405,-1269.85427237,0.00019793,2]
[359742942,1746293444415,-1000.0,0.000198,2]
[359742944,1746293444426,-1269.85427237,0.000198,2]
[359742946,1746293444436,-5058.24444537,0.00019814,2]
[359742948,1746293444446,-1346.83161316,0.00019814,2]
[359742950,1746293444458,-275.45795137,0.00019815,2]
[359742952,1746293444468,-742.14979478,0.00019836,2]
[359742954,1746293444478,-2000.0,0.0001984,2]
[359742955,1746293444488,-275.45795137,0.00019843,2]
[359742957,1746293444498,-5058.24444537,0.00019857,2]
[359742959,1746293444507,-1346.83161316,0.00019857,2]
[359742961,1746293444519,-275.45795137,0.00019872,2]
[359742963,1746293444528,-500.0,0.00019873,2]
[359742965,1746293444538,-500.0,0.00019873,2]
[359742967,1746293444548,-153.57106754,0.00019873,2]
[359742969,1746293444557,-502.98408913,0.00019873,2]
[359742971,1746293444568,-500.0,0.00019873,2]
[359742973,1746293444577,-500.0,0.00019873,2]
[359742974,1746293444587,-209.60510291,0.00019873,2]
[359742975,1746293444596,-501.21994559,0.00019873,2]
[359742976,1746293444607,-500.0,0.00019873,2]
[359742977,1746293444617,-500.68481339,0.00019873,2]
[359742978,1746293444626,-500.0,0.00019873,2]
[359742979,1746293444636,-500.0,0.00019873,2]
[359742980,1746293444646,-500.0,0.00019873,2]
[359742981,1746293444656,-168.91563715,0.00019876,2]
[359742982,1746293444665,-450.0,0.00019886,2]
[359742983,1746293444676,-583.88884764,0.00019886,2]
[359742984,1746293444685,-450.0,0.00019886,2]
[359742985,1746293444695,-450.0,0.00019886,2]
[359742986,1746293444706,-450.0,0.00019886,2]
[359742987,1746293444716,-450.0,0.00019886,2]
[359742988,1746293444726,-500.0,0.00019886,2]
[359742989,1746293444735,-450.0,0.00019886,2]
[359742990,1746293444745,-450.0,0.00019886,2]
[359742991,1746293444755,-450.0,0.00019886,2]
[359742992,1746293444764,-450.0,0.00019886,2]
[359742993,1746293444775,-450.0,0.00019886,2]
[359742994,1746293444787,-450.0,0.00019886,2]
[359742995,1746293444797,-370.5392224,0.00019886,2]
[359742996,1746293444806,-450.0,0.00019886,2]
[359742997,1746293444817,-450.0,0.00019886,2]
[359742998,1746293444828,-450.0,0.00019886,2]
[359742999,1746293444925,-450.0,0.00019886,2]
[359743000,1746293444934,-450.0,0.00019886,2]
[359743001,1746293444944,-450.0,0.00019886,2]
[359743002,1746293444954,-2739.68,0.00019886,2]
[359743003,1746293444964,-450.0,0.00019886,2]
[359743004,1746293444973,-608.23,0.00019886,2]
[359743005,1746293444983,-450.0,0.00019886,2]
[359743006,1746293444993,-450.0,0.00019886,2]
[359743007,1746293445002,-450.0,0.00019886,2]
[359743008,1746293445012,-450.0,0.00019886,2]
[359743009,1746293445021,-450.0,0.00019886,2]
[359743010,1746293445030,-450.0,0.00019886,2]
[359743011,1746293445040,-450.0,0.00019886,2]
[359743012,1746293445049,-450.0,0.00019886,2]
[359743013,1746293445059,-450.0,0.00019886,2]
[359743014,1746293445068,-486.68,0.00019886,2]
[359743015,1746293445078,-654.04,0.00019886,2]
[359743016,1746293445088,-450.0,0.00019886,2]
[359743017,1746293445097,-450.0,0.00019886,2]
[359743018,1746293445106,-450.0,0.00019886,2]
[359743019,1746293445115,-450.0,0.00019886,2]
[359743020,1746293445124,-450.0,0.00019886,2]
[359743021,1746293445133,-981.75,0.00019886,2]
[359743022,1746293445142,-890.1,0.00019886,2]
[359743023,1746293445151,-450.0,0.00019886,2]
[359743024,1746293445160,-450.0,0.00019886,2]
[359743025,1746293445170,-474.31,0.00019886,2]
[359743026,1746293445179,-542.45,0.00019886,2]
[359743027,1746293445188,-527.6,0.00019886,2]
[359743028,1746293445197,-493.87,0.00019886,2]
[359743029,1746293445207,-497.67,0.00019886,2]
[359743030,1746293445216,-450.0,0.00019886,2]
[359743031,1746293445225,-450.0,0.00019886,2]
[359743032,1746293445234,-620.11,0.00019886,2]
[359743033,1746293445244,-539.02,0.00019886,2]
[359743034,1746293445253,-450.0,0.00019886,2]
[359743035,1746293445262,-450.0,0.00019886,2]
[359743036,1746293445272,-180.47388055,0.00019886,2]
[359743037,1746293445281,-450.0,0.00019886,2]
[359743038,1746293445290,-450.0,0.00019886,2]
[359743039,1746293445300,-450.0,0.00019886,2]
[359743040,1746293445309,-462.78,0.00019886,2]
[359743041,1746293445318,-450.0,0.00019886,2]
[359743042,1746293445327,-714.78,0.00019886,2]
[359743043,1746293445337,-594.1,0.00019886,2]
[359743044,1746293445346,-551.68,0.00019886,2]
[359743045,1746293445355,-450.0,0.00019886,2]
[359743046,1746293445365,-450.0,0.00019886,2]
[359743047,1746293445375,-1454.48,0.00019886,2]
[359743048,1746293445384,-450.0,0.00019886,2]
[359743049,1746293445393,-720.15,0.00019886,2]
[359743050,1746293445402,-450.0,0.00019886,2]
[359743051,1746293445412,-450.0,0.00019886,2]
[359743052,1746293445420,-450.0,0.00019886,2]
[359743053,1746293445430,-450.0,0.00019886,2]
[359743054,1746293445439,-586.21,0.00019886,2]
[359743055,1746293445448,-450.0,0.00019886,2]
[359743056,1746293445457,-450.0,0.00019886,2]
[359743057,1746293445466,-710.59,0.00019886,2]
[359743058,1746293445476,-450.0,0.00019886,2]
[359743059,1746293445485,-450.0,0.00019886,2]
[359743060,1746293445494,-450.0,0.00019886,2]
[359743061,1746293445504,-450.0,0.00019886,2]
[359743062,1746293445513,-450.0,0.00019886,2]
[359743063,1746293445522,-599.03,0.00019886,2]
[359743064,1746293445531,-450.0,0.00019886,2]
[359743065,1746293445540,-450.0,0.00019886,2]
[359743066,1746293445549,-450.0,0.00019886,2]
[359743067,1746293445559,-450.0,0.00019886,2]
[359743068,1746293445568,-517.96,0.00019886,2]
[359743069,1746293445577,-506.76,0.00019886,2]
[359743070,1746293445586,-450.0,0.00019886,2]
[359743071,1746293445595,-247.92912972,0.00019886,2]
[359743072,1746293445605,-450.0,0.00019886,2]
[359743073,1746293445614,-450.0,0.00019886,2]
[359743074,1746293445625,-260.96088975,0.00019886,2]
[359743075,1746293445634,-578.99426522,0.00019886,2]
[359743076,1746293445644,-450.0,0.00019886,2]
[359743077,1746293445653,-450.0,0.00019886,2]
[359743078,1746293445662,-450.0,0.00019886,2]
[359743079,1746293445672,-450.0,0.00019886,2]
[359743080,1746293445682,-450.0,0.00019886,2]
[359743081,1746293445691,-450.0,0.00019886,2]
[359743082,1746293445700,-450.0,0.00019886,2]
[359743083,1746293445710,-450.0,0.00019886,2]
[359743084,1746293445720,-450.0,0.00019886,2]
[359743085,1746293445729,-208.3762102,0.00019886,2]
[359743086,1746293445739,-592.54,0.00019886,2]
[359743087,1746293445748,-450.0,0.00019886,2]
[359743088,1746293445758,-450.0,0.00019886,2]
[359743089,1746293445767,-450.0,0.00019886,2]
[359743090,1746293445780,-450.0,0.00019886,2]
[359743091,1746293445789,-450.0,0.00019886,2]
[359743092,1746293445798,-915.36,0.00019886,2]
[359743093,1746293445808,-925.09,0.00019886,2]
[359743094,1746293445817,-766.09,0.00019886,2]
[359743095,1746293445827,-336.55037097,0.00019886,2]
[359743096,1746293445836,-523.86464297,0.00019886,2]
[359743097,1746293445846,-450.0,0.00019886,2]
[359743098,1746293445857,-450.0,0.00019886,2]
[359743099,1746293445867,-1148.04,0.00019886,2]
[359743100,1746293445876,-450.0,0.00019886,2]
[359743101,1746293445886,-450.0,0.00019886,2]
[359743102,1746293445895,-697.54,0.00019886,2]
[359743103,1746293445904,-640.33,0.00019886,2]
[359743104,1746293445913,-450.0,0.00019886,2]
[359743105,1746293445926,-496.1,0.00019886,2]
[359743106,1746293445936,-450.0,0.00019886,2]
[359743107,1746293445946,-450.0,0.00019886,2]
[359743108,1746293445956,-524.70865192,0.00019886,2]
[359743109,1746293445965,-1305.7,0.00019886,2]
[359743110,1746293445975,-578.15,0.00019886,2]
[359743111,1746293445984,-565.39,0.00019886,2]
[359743112,1746293445993,-450.0,0.00019886,2]
[359743113,1746293446002,-450.0,0.00019886,2]
[359743114,1746293446013,-617.27,0.00019886,2]
[359743115,1746293446022,-450.0,0.00019886,2]
[359743116,1746293446031,-450.0,0.00019886,2]
[359743117,1746293446041,-450.0,0.00019886,2]
[359743118,1746293446050,-450.0,0.00019886,2]
[359743119,1746293446059,-475.59,0.00019886,2]
[359743120,1746293446068,-450.0,0.00019886,2]
[359743121,1746293446078,-527.59,0.00019886,2]
[359743122,1746293446087,-363.74633765,0.00019886,2]
[359743123,1746293446096,-763.89,0.00019886,2]
[359743124,1746293446106,-450.0,0.00019886,2]
[359743125,1746293446115,-659.95,0.00019886,2]